[Event "*** Titled Tuesday Blitz"]
[Site "Chess.com"]
[Date "2019.12.03"]
[Round "4"]
[White "MatthewG-p4p"]
[Black "Eltaj_Safarli"]
[Result "1/2-1/2"]
[WhiteElo "2771"]
[BlackElo "2984"]
[TimeControl "180+2"]
[EndTime "13:57:01 PST"]
[Termination "Game drawn by repetition"]

1. Nf3 {[%clk 0:03:00.1]} 1... Nf6 {[%clk 0:03:00.5]} 2. e3 {[%clk 0:03:00.4]}
2... g6 {[%clk 0:03:02.4]} 3. b4 {[%clk 0:03:01.1]} 3... Bg7 {[%clk 0:03:04.3]}
4. Bb2 {[%clk 0:03:02.7]} 4... O-O {[%clk 0:03:06.2]} 5. Be2 {[%clk 0:03:03.7]}
5... d6 {[%clk 0:03:07.8]} 6. d4 {[%clk 0:03:03.6]} 6... e5 {[%clk 0:03:09.2]}
7. c4 {[%clk 0:03:04]} 7... Nc6 {[%clk 0:03:09.8]} 8. b5 {[%clk 0:03:02.5]} 8...
Ne7 {[%clk 0:03:10.4]} 9. O-O {[%clk 0:02:59.5]} 9... e4 {[%clk 0:03:08]} 10.
Nfd2 {[%clk 0:03:00.3]} 10... Re8 {[%clk 0:03:09.6]} 11. Nc3 {[%clk 0:03:01.1]}
11... Nf5 {[%clk 0:03:10.4]} 12. Qc2 {[%clk 0:03:00.5]} 12... Qe7 {[%clk
0:03:10.4]} 13. Rfc1 {[%clk 0:03:01.6]} 13... h5 {[%clk 0:03:08.2]} 14. Nd5
{[%clk 0:02:57.4]} 14... Nxd5 {[%clk 0:03:07.8]} 15. cxd5 {[%clk 0:02:59.3]}
15... Nh4 {[%clk 0:03:03.7]} 16. g3 {[%clk 0:02:28.9]} 16... Nf5 {[%clk
0:03:02.3]} 17. Qxc7 {[%clk 0:02:28.8]} 17... Bd7 {[%clk 0:03:01.6]} 18. Qc2
{[%clk 0:02:05]} 18... h4 {[%clk 0:02:58.7]} 19. Bf1 {[%clk 0:02:03.8]} 19...
Bh6 {[%clk 0:02:59.3]} 20. Re1 {[%clk 0:02:00.2]} 20... hxg3 {[%clk 0:03:00.7]}
21. hxg3 {[%clk 0:02:01.2]} 21... Rac8 {[%clk 0:03:02.6]} 22. Qd1 {[%clk
0:02:00.1]} 22... Bxe3 {[%clk 0:02:59.7]} 23. fxe3 {[%clk 0:01:47]} 23... Qg5
{[%clk 0:03:00.1]} 24. Bg2 {[%clk 0:01:20.4]} 24... Qxg3 {[%clk 0:02:56.4]} 25.
Nf1 {[%clk 0:01:19.8]} 25... Qg5 {[%clk 0:02:55.4]} 26. Re2 {[%clk 0:01:02.3]}
26... Nh4 {[%clk 0:02:55.2]} 27. Rc2 {[%clk 0:01:01.1]} 27... Rxc2 {[%clk
0:02:53.1]} 28. Qxc2 {[%clk 0:01:03]} 28... Bh3 {[%clk 0:02:54.1]} 29. Nh2
{[%clk 0:00:59.5]} 29... Bxg2 {[%clk 0:02:53.8]} 30. Qf2 {[%clk 0:00:59]} 30...
Bh3+ {[%clk 0:02:52]} 31. Kh1 {[%clk 0:00:59.7]} 31... Bg2+ {[%clk 0:02:53.5]}
32. Kg1 {[%clk 0:01:01]} 32... Nf3+ {[%clk 0:02:55]} 33. Nxf3 {[%clk 0:01:01.8]}
33... Bxf3+ {[%clk 0:02:56.6]} 34. Kf1 {[%clk 0:01:02.3]} 34... Kg7 {[%clk
0:02:58]} 35. Ke1 {[%clk 0:01:03.4]} 35... Rh8 {[%clk 0:02:51.7]} 36. Kd2 {[%clk
0:01:04.5]} 36... Qd8 {[%clk 0:02:47.8]} 37. Bc3 {[%clk 0:01:01.1]} 37... Qb6
{[%clk 0:02:45.3]} 38. a4 {[%clk 0:01:01.7]} 38... a6 {[%clk 0:02:43.4]} 39. Rb1
{[%clk 0:01:01.6]} 39... axb5 {[%clk 0:02:43.4]} 40. Rxb5 {[%clk 0:01:03.5]}
40... Qc7 {[%clk 0:02:43.5]} 41. Kc2 {[%clk 0:00:50.4]} 41... Qc4 {[%clk
0:02:42.3]} 42. Kb2 {[%clk 0:00:47.6]} 42... Rh1 {[%clk 0:02:38.5]} 43. Qg3
{[%clk 0:00:41.9]} 43... Qxa4 {[%clk 0:02:28]} 44. Rb4 {[%clk 0:00:40.6]} 44...
Qa1+ {[%clk 0:02:28]} 45. Kb3 {[%clk 0:00:41.7]} 45... Rb1+ {[%clk 0:02:24.2]}
46. Kc2 {[%clk 0:00:40.8]} 46... Qa2+ {[%clk 0:02:22.6]} 47. Rb2 {[%clk
0:00:41.4]} 47... Rxb2+ {[%clk 0:02:22.7]} 48. Bxb2 {[%clk 0:00:43.3]} 48...
Qxd5 {[%clk 0:02:23.4]} 49. Ba3 {[%clk 0:00:42.5]} 49... Qa2+ {[%clk 0:02:21.4]}
50. Bb2 {[%clk 0:00:42.8]} 50... Qc4+ {[%clk 0:02:22.7]} 51. Bc3 {[%clk
0:00:42.5]} 51... d5 {[%clk 0:02:07.3]} 52. Qe5+ {[%clk 0:00:43]} 52... Kh7
{[%clk 0:02:08.8]} 53. Qh2+ {[%clk 0:00:43.3]} 53... Bh5 {[%clk 0:02:10.2]} 54.
Qf4 {[%clk 0:00:41.8]} 54... Qe2+ {[%clk 0:02:10.4]} 55. Kb3 {[%clk 0:00:42.9]}
55... Qf3 {[%clk 0:02:05.7]} 56. Qg5 {[%clk 0:00:43.9]} 56... f6 {[%clk
0:01:59.9]} 57. Qxd5 {[%clk 0:00:43]} 57... Kh6 {[%clk 0:01:52.1]} 58. Qd8
{[%clk 0:00:31.6]} 58... Kg5 {[%clk 0:01:41.9]} 59. d5 {[%clk 0:00:31.8]} 59...
Qf5 {[%clk 0:01:19.5]} 60. Bd4 {[%clk 0:00:29.5]} 60... Bg4 {[%clk 0:01:17.4]}
61. d6 {[%clk 0:00:24.4]} 61... Qe6+ {[%clk 0:01:15.9]} 62. Kc3 {[%clk
0:00:23.7]} 62... Be2 {[%clk 0:01:08.7]} 63. Qa5+ {[%clk 0:00:15.9]} 63... Kg4
{[%clk 0:01:07.4]} 64. Qc7 {[%clk 0:00:11.7]} 64... Bb5 {[%clk 0:01:03.4]} 65.
Kb4 {[%clk 0:00:12.8]} 65... Bc6 {[%clk 0:01:03]} 66. d7 {[%clk 0:00:03.6]}
66... Qxd7 {[%clk 0:01:00.7]} 67. Qf4+ {[%clk 0:00:05.2]} 67... Kh3 {[%clk
0:01:01.8]} 68. Bxf6 {[%clk 0:00:06.8]} 68... Qd2+ {[%clk 0:00:59.2]} 69. Kc5
{[%clk 0:00:07.4]} 69... Qa5+ {[%clk 0:00:58.4]} 70. Kd6 {[%clk 0:00:08.8]}
70... Qd5+ {[%clk 0:00:56.4]} 71. Kc7 {[%clk 0:00:09.9]} 71... Qd7+ {[%clk
0:00:55.3]} 72. Kb6 {[%clk 0:00:11.1]} 72... Qg4 {[%clk 0:00:52.4]} 73. Qh6+
{[%clk 0:00:09.7]} 73... Kg2 {[%clk 0:00:52.8]} 74. Be5 {[%clk 0:00:10.3]} 74...
g5 {[%clk 0:00:46]} 75. Bf6 {[%clk 0:00:10]} 75... Kf1 {[%clk 0:00:34.4]} 76.
Qxg5 {[%clk 0:00:10.8]} 76... Qf3 {[%clk 0:00:35.1]} 77. Bd4 {[%clk 0:00:10.2]}
77... Ke2 {[%clk 0:00:36.4]} 78. Qc5 {[%clk 0:00:10.2]} 78... Kf1 {[%clk
0:00:33.9]} 79. Qc4+ {[%clk 0:00:10.6]} 79... Kg2 {[%clk 0:00:34.7]} 80. Qg8+
{[%clk 0:00:11.7]} 80... Kf2 {[%clk 0:00:35.3]} 81. Qa2+ {[%clk 0:00:12.5]}
81... Kg3 {[%clk 0:00:34.7]} 82. Qg8+ {[%clk 0:00:13.4]} 82... Kh4 {[%clk
0:00:33.9]} 83. Qh7+ {[%clk 0:00:14.2]} 83... Kg3 {[%clk 0:00:33.4]} 84. Qg8+
{[%clk 0:00:14.6]} 84... Kh2 {[%clk 0:00:32.2]} 85. Be5+ {[%clk 0:00:14.7]}
85... Kh1 {[%clk 0:00:31.9]} 86. Bd4 {[%clk 0:00:15.4]} 86... Qh3 {[%clk
0:00:29.3]} 87. Qg7 {[%clk 0:00:14.1]} 87... Qh2 {[%clk 0:00:22.9]} 88. Qh8
{[%clk 0:00:14.6]} 88... Qxh8 {[%clk 0:00:20.9]} 89. Bxh8 {[%clk 0:00:16.5]}
89... Kg2 {[%clk 0:00:22.2]} 90. Bd4 {[%clk 0:00:18]} 90... Kf3 {[%clk
0:00:24.1]} 91. Bc5 {[%clk 0:00:19.4]} 91... Ke2 {[%clk 0:00:25.3]} 92. Bd4
{[%clk 0:00:21.3]} 92... Kd3 {[%clk 0:00:27.2]} 93. Bc5 {[%clk 0:00:23.1]} 93...
Kc4 {[%clk 0:00:29]} 94. Bd4 {[%clk 0:00:24.6]} 94... Kd5 {[%clk 0:00:28.8]} 95.
Bc5 {[%clk 0:00:25.9]} 95... Ke6 {[%clk 0:00:29.4]} 96. Bd4 {[%clk 0:00:27.3]}
96... Kd7 {[%clk 0:00:31]} 97. Bc5 {[%clk 0:00:29]} 97... Ke6 {[%clk 0:00:32.7]}
98. Bd4 {[%clk 0:00:30.7]} 98... Kf5 {[%clk 0:00:34.6]} 99. Bc5 {[%clk
0:00:32.5]} 99... Kg4 {[%clk 0:00:36.5]} 100. Bd4 {[%clk 0:00:34.4]} 100... Kf5
{[%clk 0:00:38.4]} 101. Bc5 {[%clk 0:00:36.3]} 101... Kg4 {[%clk 0:00:40.3]}
102. Bd4 {[%clk 0:00:38.2]} 102... Kf5 {[%clk 0:00:42.2]} 1/2-1/2

[Event "*** Titled Tuesday Blitz"]
[Site "Chess.com"]
[Date "2019.12.03"]
[Round "5"]
[White "champ2005"]
[Black "AnubisInmortal03"]
[Result "1-0"]
[WhiteElo "2950"]
[BlackElo "2571"]
[TimeControl "180+2"]
[EndTime "13:59:08 PST"]
[Termination "champ2005 won by resignation"]

1. c4 {[%clk 0:03:01.9]} 1... Nf6 {[%clk 0:03:00.9]} 2. Nc3 {[%clk 0:03:02.7]}
2... e6 {[%clk 0:03:02.3]} 3. e4 {[%clk 0:03:03.8]} 3... d5 {[%clk 0:03:03.7]}
4. e5 {[%clk 0:03:05.3]} 4... d4 {[%clk 0:03:03.3]} 5. exf6 {[%clk 0:03:06.4]}
5... dxc3 {[%clk 0:03:04.9]} 6. bxc3 {[%clk 0:03:08.3]} 6... Qxf6 {[%clk
0:03:03.7]} 7. Nf3 {[%clk 0:03:09.6]} 7... h6 {[%clk 0:03:03.6]} 8. d4 {[%clk
0:03:09.6]} 8... Be7 {[%clk 0:03:00.5]} 9. Bd3 {[%clk 0:03:09.8]} 9... O-O
{[%clk 0:03:00.5]} 10. O-O {[%clk 0:03:11.3]} 10... b6 {[%clk 0:03:01.6]} 11.
Be4 {[%clk 0:03:10.7]} 11... c6 {[%clk 0:03:02.4]} 12. Ne5 {[%clk 0:03:09.7]}
12... Bb7 {[%clk 0:03:02.8]} 13. Ng4 {[%clk 0:03:05.6]} 13... Qh4 {[%clk
0:02:58.5]} 14. g3 {[%clk 0:03:06.7]} 14... Qh3 {[%clk 0:02:59.8]} 15. Bg2
{[%clk 0:03:07.8]} 1-0

[Event "*** Titled Tuesday Blitz"]
[Site "Chess.com"]
[Date "2019.12.03"]
[Round "5"]
[White "Walter_White_Poland"]
[Black "TST2014"]
[Result "0-1"]
[WhiteElo "2313"]
[BlackElo "2507"]
[TimeControl "180+2"]
[EndTime "14:00:36 PST"]
[Termination "TST2014 won by resignation"]

1. e4 {[%clk 0:01:51.6]} 1... c5 {[%clk 0:02:51.9]} 2. Nf3 {[%clk 0:01:49.6]}
2... Nc6 {[%clk 0:02:48.1]} 3. d4 {[%clk 0:01:49.7]} 3... cxd4 {[%clk
0:02:48.6]} 4. Nxd4 {[%clk 0:01:51.6]} 4... Nf6 {[%clk 0:02:48.8]} 5. Nc3 {[%clk
0:01:52.6]} 5... d6 {[%clk 0:02:49.1]} 6. Bg5 {[%clk 0:01:52.3]} 6... e6 {[%clk
0:02:48.6]} 7. Qd2 {[%clk 0:01:53.4]} 7... a6 {[%clk 0:02:48.8]} 8. O-O-O {[%clk
0:01:53.6]} 8... Bd7 {[%clk 0:02:49.5]} 9. f4 {[%clk 0:01:51.9]} 9... h6 {[%clk
0:02:49.7]} 10. Bxf6 {[%clk 0:01:51.9]} 10... Qxf6 {[%clk 0:02:49.9]} 11. Nf3
{[%clk 0:01:35.2]} 11... Qd8 {[%clk 0:02:49.4]} 12. g4 {[%clk 0:01:26.9]} 12...
Qc7 {[%clk 0:02:47.7]} 13. h4 {[%clk 0:01:19.8]} 13... O-O-O {[%clk 0:02:46.5]}
14. g5 {[%clk 0:01:16.9]} 14... hxg5 {[%clk 0:02:42.7]} 15. hxg5 {[%clk
0:01:17.1]} 15... Rxh1 {[%clk 0:02:42]} 0-1

[Event "*** Titled Tuesday Blitz"]
[Site "Chess.com"]
[Date "2019.12.03"]
[Round "5"]
[White "brendan174"]
[Black "Al_Shima"]
[Result "0-1"]
[WhiteElo "2113"]
[BlackElo "2449"]
[TimeControl "180+2"]
[EndTime "14:01:27 PST"]
[Termination "Al_Shima won by resignation"]

1. d4 {[%clk 0:03:01.9]} 1... Nf6 {[%clk 0:03:00.2]} 2. Nc3 {[%clk 0:03:02.7]}
2... d5 {[%clk 0:02:57.4]} 3. Bf4 {[%clk 0:03:03.3]} 3... Bf5 {[%clk 0:02:55.3]}
4. f3 {[%clk 0:03:03.8]} 4... e6 {[%clk 0:02:55.6]} 5. g4 {[%clk 0:03:04.8]}
5... Bg6 {[%clk 0:02:56.1]} 6. h4 {[%clk 0:03:06.5]} 6... h5 {[%clk 0:02:55.2]}
7. g5 {[%clk 0:03:07.5]} 7... Nfd7 {[%clk 0:02:56]} 8. e3 {[%clk 0:03:09.1]}
8... a6 {[%clk 0:02:45.8]} 9. Bd3 {[%clk 0:03:09.3]} 9... Bxd3 {[%clk
0:02:45.8]} 10. Qxd3 {[%clk 0:03:11.2]} 10... g6 {[%clk 0:02:45.8]} 11. Nge2
{[%clk 0:03:05.4]} 11... c5 {[%clk 0:02:45.9]} 12. O-O-O {[%clk 0:03:02.5]}
12... Nc6 {[%clk 0:02:46.4]} 13. Kb1 {[%clk 0:02:57.3]} 13... Rc8 {[%clk
0:02:46]} 14. e4 {[%clk 0:02:53.4]} 14... cxd4 {[%clk 0:02:33.1]} 15. Nxd4
{[%clk 0:02:53.2]} 15... Bg7 {[%clk 0:02:33.9]} 16. Nxc6 {[%clk 0:02:42.1]}
16... bxc6 {[%clk 0:02:35.8]} 17. Rhe1 {[%clk 0:02:35.2]} 17... O-O {[%clk
0:02:34.6]} 18. e5 {[%clk 0:02:21]} 18... Qb6 {[%clk 0:02:30.2]} 19. Na4 {[%clk
0:02:16.4]} 19... Qb4 {[%clk 0:02:28.6]} 20. Qd4 {[%clk 0:02:12.6]} 20... Qxd4
{[%clk 0:02:24.2]} 21. Rxd4 {[%clk 0:02:14.5]} 21... c5 {[%clk 0:02:25.4]} 22.
Rd2 {[%clk 0:02:06.6]} 22... Rb8 {[%clk 0:02:25.5]} 23. Bg3 {[%clk 0:02:00.8]}
23... Rb4 {[%clk 0:02:20.2]} 24. b3 {[%clk 0:02:01.5]} 24... Rfb8 {[%clk
0:02:08.9]} 25. f4 {[%clk 0:01:46]} 25... Rxa4 {[%clk 0:02:08]} 0-1

[Event "*** Titled Tuesday Blitz"]
[Site "Chess.com"]
[Date "2019.12.03"]
[Round "5"]
[White "KRASAVCHIK2002"]
[Black "DangerousPlayer1st"]
[Result "0-1"]
[WhiteElo "2471"]
[BlackElo "2793"]
[TimeControl "180+2"]
[EndTime "14:01:59 PST"]
[Termination "DangerousPlayer1st won by resignation"]

1. e4 {[%clk 0:03:01.9]} 1... Nf6 {[%clk 0:03:00.5]} 2. e5 {[%clk 0:03:02]} 2...
Nd5 {[%clk 0:03:01.9]} 3. d4 {[%clk 0:03:03.4]} 3... d6 {[%clk 0:03:03]} 4. c4
{[%clk 0:03:04.7]} 4... Nb6 {[%clk 0:03:03.5]} 5. exd6 {[%clk 0:03:06]} 5...
cxd6 {[%clk 0:03:05.4]} 6. Nc3 {[%clk 0:03:06.1]} 6... g6 {[%clk 0:03:06.8]} 7.
Nf3 {[%clk 0:03:07.1]} 7... Bg7 {[%clk 0:03:06.2]} 8. Be3 {[%clk 0:03:08.4]}
8... O-O {[%clk 0:03:04.7]} 9. Rc1 {[%clk 0:03:07.5]} 9... Bg4 {[%clk 0:03:05]}
10. b3 {[%clk 0:03:07.5]} 10... d5 {[%clk 0:03:04.6]} 11. c5 {[%clk 0:03:07]}
11... Nc8 {[%clk 0:03:03.1]} 12. Be2 {[%clk 0:03:06.8]} 12... Nc6 {[%clk
0:03:03.3]} 13. h3 {[%clk 0:03:06.5]} 13... Bxf3 {[%clk 0:03:02.4]} 14. Bxf3
{[%clk 0:03:08.4]} 14... e6 {[%clk 0:03:04.3]} 15. O-O {[%clk 0:03:04.7]} 15...
N8e7 {[%clk 0:03:05.8]} 16. a3 {[%clk 0:02:59.8]} 16... Nf5 {[%clk 0:03:06.7]}
17. Ne2 {[%clk 0:03:00.6]} 17... Qf6 {[%clk 0:03:07.6]} 18. b4 {[%clk 0:02:43]}
18... Ncxd4 {[%clk 0:03:08.1]} 19. Nxd4 {[%clk 0:02:42.2]} 19... Nxd4 {[%clk
0:03:10]} 20. Bxd4 {[%clk 0:02:43.6]} 20... Qxd4 {[%clk 0:03:11.9]} 21. Qxd4
{[%clk 0:02:42.6]} 21... Bxd4 {[%clk 0:03:13.8]} 22. Rfd1 {[%clk 0:02:43.6]}
22... Bb2 {[%clk 0:03:04.7]} 23. Rb1 {[%clk 0:02:39.6]} 23... Be5 {[%clk
0:03:06.1]} 24. Rd3 {[%clk 0:02:32.8]} 24... Rfc8 {[%clk 0:03:04]} 25. g3 {[%clk
0:02:29]} 25... b6 {[%clk 0:03:03.6]} 26. cxb6 {[%clk 0:02:26]} 26... axb6
{[%clk 0:03:05.5]} 27. Re1 {[%clk 0:02:19.8]} 27... Bc3 {[%clk 0:03:00.2]} 28.
Rc1 {[%clk 0:02:07.2]} 28... Rxa3 {[%clk 0:03:01.1]} 29. b5 {[%clk 0:01:54.2]}
29... Rc5 {[%clk 0:02:58.4]} 30. h4 {[%clk 0:01:16.1]} 30... Kg7 {[%clk
0:02:57.7]} 31. Kg2 {[%clk 0:01:15.6]} 31... Bb4 {[%clk 0:02:51.5]} 32. Rxc5
{[%clk 0:01:08.3]} 32... Rxd3 {[%clk 0:02:50.8]} 0-1

[Event "*** Titled Tuesday Blitz"]
[Site "Chess.com"]
[Date "2019.12.03"]
[Round "5"]
[White "VincentKeymer"]
[Black "GCamachoMartinez"]
[Result "1-0"]
[WhiteElo "2641"]
[BlackElo "2436"]
[TimeControl "180+2"]
[EndTime "14:02:19 PST"]
[Termination "VincentKeymer won by resignation"]

1. Nf3 {[%clk 0:03:01.9]} 1... Nf6 {[%clk 0:02:59.9]} 2. g3 {[%clk 0:03:03.8]}
2... d5 {[%clk 0:03:00.4]} 3. Bg2 {[%clk 0:03:04]} 3... c5 {[%clk 0:03:01.3]} 4.
O-O {[%clk 0:03:05.9]} 4... Nc6 {[%clk 0:03:01.9]} 5. c4 {[%clk 0:03:07.4]} 5...
d4 {[%clk 0:03:02.3]} 6. a3 {[%clk 0:03:08.2]} 6... e5 {[%clk 0:02:58.7]} 7. b4
{[%clk 0:03:08.6]} 7... cxb4 {[%clk 0:02:58.8]} 8. axb4 {[%clk 0:03:10.5]} 8...
Bd6 {[%clk 0:02:28.6]} 9. c5 {[%clk 0:03:07.9]} 9... Bc7 {[%clk 0:02:28.8]} 10.
b5 {[%clk 0:03:08.7]} 10... Ne7 {[%clk 0:02:08.4]} 11. b6 {[%clk 0:03:09.2]}
11... Bb8 {[%clk 0:01:53.9]} 12. bxa7 {[%clk 0:03:00.2]} 12... Bc7 {[%clk
0:01:53.7]} 13. Na3 {[%clk 0:02:34.5]} 13... Nc6 {[%clk 0:01:49.7]} 14. Nb5
{[%clk 0:02:34.2]} 14... O-O {[%clk 0:01:50]} 15. d3 {[%clk 0:02:33.6]} 15...
Be6 {[%clk 0:01:45]} 16. Bg5 {[%clk 0:02:27.5]} 16... Bd5 {[%clk 0:01:10.7]} 17.
Bxf6 {[%clk 0:02:20.2]} 17... gxf6 {[%clk 0:01:11.6]} 18. Qc1 {[%clk 0:02:18.3]}
18... Kg7 {[%clk 0:01:11.3]} 19. Nh4 {[%clk 0:02:18.4]} 19... Bxg2 {[%clk
0:00:51.2]} 20. Nf5+ {[%clk 0:02:15.8]} 20... Kg6 {[%clk 0:00:51.4]} 21. g4
{[%clk 0:02:16.9]} 1-0

[Event "*** Titled Tuesday Blitz"]
[Site "Chess.com"]
[Date "2019.12.03"]
[Round "5"]
[White "2165149677570"]
[Black "WorldChampionBulletChess"]
[Result "1-0"]
[WhiteElo "2340"]
[BlackElo "2087"]
[TimeControl "180+2"]
[EndTime "14:02:21 PST"]
[Termination "2165149677570 won by resignation"]

1. e4 {[%clk 0:03:01.9]} 1... d5 {[%clk 0:00:02.8]} 2. exd5 {[%clk 0:03:01.6]}
2... Qxd5 {[%clk 0:00:04.7]} 3. Nc3 {[%clk 0:03:03.1]} 3... Qd6 {[%clk
0:00:05.8]} 4. d4 {[%clk 0:03:04.2]} 4... Nf6 {[%clk 0:00:07.2]} 5. Nf3 {[%clk
0:03:05.4]} 5... Bg4 {[%clk 0:00:07.7]} 6. Be2 {[%clk 0:03:06.2]} 6... e6 {[%clk
0:00:09.2]} 7. h3 {[%clk 0:03:03]} 7... Bh5 {[%clk 0:00:09.6]} 8. O-O {[%clk
0:03:03.2]} 8... c6 {[%clk 0:00:10.1]} 9. Bg5 {[%clk 0:02:58.9]} 9... Be7 {[%clk
0:00:10.5]} 10. Ne5 {[%clk 0:03:00.5]} 10... Nbd7 {[%clk 0:00:11.2]} 11. Bxh5
{[%clk 0:03:00]} 11... h6 {[%clk 0:00:06.4]} 12. Bf4 {[%clk 0:02:56.5]} 12...
Nxh5 {[%clk 0:00:07.4]} 13. Qxh5 {[%clk 0:02:57.2]} 13... g6 {[%clk 0:00:08]}
14. Nxg6 {[%clk 0:02:56.7]} 14... Qb4 {[%clk 0:00:08.1]} 15. Nxh8 {[%clk
0:02:57.3]} 15... O-O-O {[%clk 0:00:08.6]} 16. Nxf7 {[%clk 0:02:57.7]} 16... Rf8
{[%clk 0:00:06.9]} 17. Bxh6 {[%clk 0:02:57]} 17... Rg8 {[%clk 0:00:06.9]} 18.
Ng5 {[%clk 0:02:52.9]} 18... Qxd4 {[%clk 0:00:06.6]} 19. Rad1 {[%clk 0:02:51.4]}
19... Qf6 {[%clk 0:00:07.7]} 20. Qf7 {[%clk 0:02:37.9]} 20... Qxf7 {[%clk
0:00:06.7]} 21. Nxf7 {[%clk 0:02:39.8]} 21... Nf6 {[%clk 0:00:06.8]} 22. Bg5
{[%clk 0:02:38.6]} 1-0

[Event "*** Titled Tuesday Blitz"]
[Site "Chess.com"]
[Date "2019.12.03"]
[Round "5"]
[White "HarutyunianTigranK"]
[Black "francyIM"]
[Result "1-0"]
[WhiteElo "2771"]
[BlackElo "2596"]
[TimeControl "180+2"]
[EndTime "14:02:22 PST"]
[Termination "HarutyunianTigranK won by resignation"]

1. c4 {[%clk 0:03:01.9]} 1... e5 {[%clk 0:02:59.1]} 2. Nc3 {[%clk 0:03:02.7]}
2... Nf6 {[%clk 0:02:59.2]} 3. Nf3 {[%clk 0:03:04.2]} 3... Nc6 {[%clk 0:03:00]}
4. e4 {[%clk 0:03:05.7]} 4... d6 {[%clk 0:02:58.2]} 5. Be2 {[%clk 0:03:03.5]}
5... g6 {[%clk 0:02:59.5]} 6. d4 {[%clk 0:03:03.7]} 6... Bg7 {[%clk 0:03:00.4]}
7. dxe5 {[%clk 0:03:03.2]} 7... Nxe5 {[%clk 0:03:01.7]} 8. O-O {[%clk
0:02:30.3]} 8... O-O {[%clk 0:03:01]} 9. Nd2 {[%clk 0:02:25.1]} 9... Re8 {[%clk
0:02:59.4]} 10. b3 {[%clk 0:02:25.2]} 10... Nc6 {[%clk 0:02:58.4]} 11. Bb2
{[%clk 0:02:25.3]} 11... b6 {[%clk 0:02:53.6]} 12. Re1 {[%clk 0:02:10.9]} 12...
Bb7 {[%clk 0:02:53.6]} 13. Bf1 {[%clk 0:02:12.4]} 13... a6 {[%clk 0:02:54.3]}
14. Qf3 {[%clk 0:02:00.3]} 14... Nd4 {[%clk 0:02:50.1]} 15. Qd3 {[%clk
0:02:00.7]} 15... Nd7 {[%clk 0:02:50.6]} 16. Rad1 {[%clk 0:02:01.6]} 16... Nc5
{[%clk 0:02:45.5]} 17. Qb1 {[%clk 0:01:59.8]} 17... Nce6 {[%clk 0:02:45.9]} 18.
Nd5 {[%clk 0:01:57.9]} 18... c6 {[%clk 0:02:45.7]} 19. Ne3 {[%clk 0:01:56]}
19... b5 {[%clk 0:02:46.1]} 20. Nc2 {[%clk 0:01:18.6]} 20... Nxc2 {[%clk
0:02:43.5]} 21. Qxc2 {[%clk 0:01:19]} 21... Bxb2 {[%clk 0:02:34.9]} 22. Qxb2
{[%clk 0:01:19.6]} 22... Qe7 {[%clk 0:02:36.1]} 23. e5 {[%clk 0:01:17.9]} 23...
Rad8 {[%clk 0:02:35.2]} 24. Ne4 {[%clk 0:01:17.7]} 24... dxe5 {[%clk 0:02:35.5]}
25. Qxe5 {[%clk 0:01:18.2]} 25... Rxd1 {[%clk 0:02:34.6]} 26. Rxd1 {[%clk
0:01:16.2]} 26... Nf8 {[%clk 0:02:29.4]} 27. Nf6+ {[%clk 0:01:10.8]} 27... Kh8
{[%clk 0:02:25.4]} 28. Qa1 {[%clk 0:01:09.7]} 28... Qxf6 {[%clk 0:02:05]} 29.
Qxf6+ {[%clk 0:01:09]} 29... Kg8 {[%clk 0:02:06.9]} 30. Rd8 {[%clk 0:01:07]} 1-0

[Event "*** Titled Tuesday Blitz"]
[Site "Chess.com"]
[Date "2019.12.03"]
[Round "5"]
[White "PawnEatingZombie"]
[Black "Everyfishknows"]
[Result "0-1"]
[WhiteElo "2118"]
[BlackElo "2302"]
[TimeControl "180+2"]
[EndTime "14:02:28 PST"]
[Termination "Everyfishknows won by resignation"]

1. d4 {[%clk 0:03:01.9]} 1... Nf6 {[%clk 0:03:00.6]} 2. c4 {[%clk 0:03:03]} 2...
e6 {[%clk 0:03:01.4]} 3. Nc3 {[%clk 0:03:04.5]} 3... Bb4 {[%clk 0:03:02.3]} 4.
Qc2 {[%clk 0:03:06.1]} 4... O-O {[%clk 0:02:59.1]} 5. e4 {[%clk 0:03:07.1]} 5...
d5 {[%clk 0:02:59.3]} 6. e5 {[%clk 0:03:07.3]} 6... Ne4 {[%clk 0:03:00.5]} 7.
Bd3 {[%clk 0:03:09]} 7... c5 {[%clk 0:03:01.9]} 8. Nf3 {[%clk 0:03:09]} 8...
cxd4 {[%clk 0:02:25.2]} 9. Nxd4 {[%clk 0:03:10.9]} 9... Nd7 {[%clk 0:02:26.5]}
10. Bf4 {[%clk 0:03:10.1]} 10... Qh4 {[%clk 0:02:22.5]} 11. g3 {[%clk
0:03:10.4]} 11... Qh5 {[%clk 0:02:17.5]} 12. h4 {[%clk 0:03:08.1]} 12... Nxe5
{[%clk 0:02:10.7]} 13. Be2 {[%clk 0:03:08.8]} 13... Ng4 {[%clk 0:02:07.4]} 14.
Bxg4 {[%clk 0:03:10]} 14... Qxg4 {[%clk 0:02:07.6]} 15. f3 {[%clk 0:03:08.6]}
15... Qh5 {[%clk 0:02:05.5]} 16. g4 {[%clk 0:03:08.5]} 16... Qg6 {[%clk
0:02:01.2]} 17. fxe4 {[%clk 0:02:48.6]} 17... e5 {[%clk 0:02:01.6]} 18. Bxe5
{[%clk 0:02:44]} 18... Re8 {[%clk 0:01:58.7]} 19. exd5 {[%clk 0:02:41.5]} 19...
Rxe5+ {[%clk 0:01:50.2]} 20. Kd2 {[%clk 0:02:25.5]} 20... Qxg4 {[%clk
0:01:41.5]} 21. Qd3 {[%clk 0:02:08.4]} 21... Qg2+ {[%clk 0:01:16]} 22. Ne2
{[%clk 0:01:51.8]} 22... Bg4 {[%clk 0:01:15.3]} 23. Rhe1 {[%clk 0:01:37.4]}
23... Rae8 {[%clk 0:01:15.3]} 0-1